[Event "Early-Titled-Tuesday-Blitz-January-23-2024"]
[Site "Chess.com"]
[Date "2024.01.23"]
[Round "6"]
[White "Skatchkov_V"]
[Black "EvgenyBurmakin"]
[Result "1-0"]
[WhiteElo "2628"]
[BlackElo "2452"]
[TimeControl "180+1"]
[EndTime "9:05:42 PST"]
[Termination "Skatchkov_V won by resignation"]

1. d4 {[%clk 0:03:00.9]} 1... Nf6 {[%clk 0:03:00]} 2. c4 {[%clk 0:03:00.1]} 2...
g6 {[%clk 0:03:00.3]} 3. Nc3 {[%clk 0:02:59.9]} 3... Bg7 {[%clk 0:03:00.8]} 4.
e4 {[%clk 0:02:58.6]} 4... d6 {[%clk 0:03:01.2]} 5. h3 {[%clk 0:02:59.1]} 5...
O-O {[%clk 0:03:01]} 6. Bg5 {[%clk 0:02:59.7]} 6... h6 {[%clk 0:03:00.6]} 7. Be3
{[%clk 0:02:59.7]} 7... e5 {[%clk 0:02:59.2]} 8. d5 {[%clk 0:02:58.7]} 8... c6
{[%clk 0:02:56.1]} 9. Qd2 {[%clk 0:02:59]} 9... Kh7 {[%clk 0:02:51.4]} 10. g4
{[%clk 0:02:58.7]} 10... cxd5 {[%clk 0:02:50.7]} 11. cxd5 {[%clk 0:02:59.6]}
11... Ne8 {[%clk 0:02:33.5]} 12. Bd3 {[%clk 0:02:53.7]} 12... Nd7 {[%clk
0:02:31.8]} 13. Nge2 {[%clk 0:02:53.7]} 13... Nc5 {[%clk 0:02:31.7]} 14. Bc2
{[%clk 0:02:54]} 14... a5 {[%clk 0:02:24.2]} 15. f3 {[%clk 0:02:53.8]} 15... b6
{[%clk 0:02:20.8]} 16. h4 {[%clk 0:02:51.5]} 16... Ba6 {[%clk 0:02:09.5]} 17. h5
{[%clk 0:02:50.9]} 17... g5 {[%clk 0:02:07.6]} 18. O-O {[%clk 0:02:50.6]} 18...
b5 {[%clk 0:02:05.3]} 19. a3 {[%clk 0:02:51]} 19... b4 {[%clk 0:01:54.1]} 20.
Na4 {[%clk 0:02:50.6]} 20... b3 {[%clk 0:01:31.5]} 21. Nxc5 {[%clk 0:02:50.2]}
21... bxc2 {[%clk 0:01:29]} 22. Nxa6 {[%clk 0:02:49.9]} 22... Rxa6 {[%clk
0:01:23.7]} 23. Qxc2 {[%clk 0:02:50.1]} 23... Nc7 {[%clk 0:01:18.8]} 24. b4
{[%clk 0:02:50.4]} 24... Qb8 {[%clk 0:00:48.8]} 25. Rfb1 {[%clk 0:02:40.2]}
25... axb4 {[%clk 0:00:42.4]} 26. Rxb4 {[%clk 0:02:40]} 26... Qxb4 {[%clk
0:00:39.6]} 27. axb4 {[%clk 0:02:38.8]} 27... Rxa1+ {[%clk 0:00:40.5]} 28. Kf2
{[%clk 0:02:38.7]} 28... Nb5 {[%clk 0:00:35.5]} 29. Qd3 {[%clk 0:02:38]} 29...
Rb8 {[%clk 0:00:33.4]} 30. Nc1 {[%clk 0:02:28.7]} 30... Ra3 {[%clk 0:00:22.6]}
31. Nb3 {[%clk 0:02:28.9]} 31... Nd4 {[%clk 0:00:20.6]} 32. Bxd4 {[%clk
0:02:29.1]} 32... exd4 {[%clk 0:00:21.5]} 33. e5+ {[%clk 0:02:30]} 33... Kg8
{[%clk 0:00:20.3]} 34. exd6 {[%clk 0:02:30.3]} 34... Rxb4 {[%clk 0:00:19.6]} 35.
d7 {[%clk 0:02:30.7]} 35... Bf6 {[%clk 0:00:19.9]} 36. Qf5 {[%clk 0:02:28.4]}
36... Bd8 {[%clk 0:00:15.8]} 37. Nd2 {[%clk 0:01:47.5]} 37... Rb2 {[%clk
0:00:14]} 38. Qe5 {[%clk 0:01:48.1]} 38... Rxd2+ {[%clk 0:00:13.4]} 39. Ke1
{[%clk 0:01:48.7]} 39... Ba5 {[%clk 0:00:11.1]} 40. d8=Q+ {[%clk 0:01:46.5]}
40... Bxd8 {[%clk 0:00:09.6]} 41. Kxd2 {[%clk 0:01:46.9]} 41... Ba5+ {[%clk
0:00:09.6]} 42. Kc2 {[%clk 0:01:45.3]} 42... d3+ {[%clk 0:00:08.8]} 43. Kb2
{[%clk 0:01:44.8]} 43... d2 {[%clk 0:00:08.3]} 44. Qe8+ {[%clk 0:01:36.7]} 44...
Kg7 {[%clk 0:00:08]} 45. Qe5+ {[%clk 0:01:33.4]} 45... Kg8 {[%clk 0:00:07.3]}
46. Qe2 {[%clk 0:01:34.1]} 46... Ra4 {[%clk 0:00:05.1]} 47. Kc2 {[%clk
0:01:31.5]} 47... Rd4 {[%clk 0:00:04.9]} 48. Kd1 {[%clk 0:01:32]} 48... Rxd5
{[%clk 0:00:05.1]} 49. Qe8+ {[%clk 0:01:32.1]} 49... Kg7 {[%clk 0:00:05.2]} 50.
Qe4 {[%clk 0:01:31.5]} 50... Rd6 {[%clk 0:00:04.6]} 51. Qe5+ {[%clk 0:01:31.6]}
51... Kg8 {[%clk 0:00:03.9]} 52. Qxd6 {[%clk 0:01:31.6]} 52... Kg7 {[%clk
0:00:03.3]} 53. Qe5+ {[%clk 0:01:31.8]} 53... Kg8 {[%clk 0:00:03.1]} 54. Qxa5
{[%clk 0:01:32.7]} 1-0

[Event "Early-Titled-Tuesday-Blitz-January-23-2024"]
[Site "Chess.com"]
[Date "2024.01.23"]
[Round "6"]
[White "zurzan"]
[Black "Der_Balak_3Halak"]
[Result "0-1"]
[WhiteElo "2030"]
[BlackElo "2330"]
[TimeControl "180+1"]
[EndTime "9:05:44 PST"]
[Termination "Der_Balak_3Halak won by checkmate"]

1. c4 {[%clk 0:03:00]} 1... g6 {[%clk 0:02:57.9]} 2. d3 {[%clk 0:02:59.9]} 2...
Bg7 {[%clk 0:02:58.8]} 3. Nf3 {[%clk 0:02:59.4]} 3... c5 {[%clk 0:02:58.7]} 4.
Nc3 {[%clk 0:02:59.3]} 4... Nc6 {[%clk 0:02:59.2]} 5. g3 {[%clk 0:02:59.7]} 5...
e6 {[%clk 0:02:59.6]} 6. Bg2 {[%clk 0:03:00.1]} 6... Nge7 {[%clk 0:03:00.3]} 7.
a3 {[%clk 0:02:59.4]} 7... O-O {[%clk 0:03:00.3]} 8. Rb1 {[%clk 0:02:59.7]} 8...
a6 {[%clk 0:02:58]} 9. Bd2 {[%clk 0:02:59.3]} 9... Rb8 {[%clk 0:02:53.3]} 10. b4
{[%clk 0:02:58.9]} 10... cxb4 {[%clk 0:02:54.2]} 11. axb4 {[%clk 0:02:59.3]}
11... b5 {[%clk 0:02:55.1]} 12. cxb5 {[%clk 0:02:58.8]} 12... axb5 {[%clk
0:02:56]} 13. h4 {[%clk 0:02:55.9]} 13... d5 {[%clk 0:02:37.8]} 14. h5 {[%clk
0:02:54.6]} 14... Nd4 {[%clk 0:02:22.3]} 15. Nxd4 {[%clk 0:02:50.6]} 15... Bxd4
{[%clk 0:02:23.2]} 16. hxg6 {[%clk 0:02:49.3]} 16... fxg6 {[%clk 0:02:24.1]} 17.
O-O {[%clk 0:02:43.7]} 17... Qc7 {[%clk 0:02:22.4]} 18. e3 {[%clk 0:02:33.8]}
18... Bg7 {[%clk 0:02:06.4]} 19. Rc1 {[%clk 0:02:32.2]} 19... Qd6 {[%clk
0:02:02.5]} 20. e4 {[%clk 0:02:17.2]} 20... d4 {[%clk 0:01:58.5]} 21. Ne2 {[%clk
0:02:09.2]} 21... e5 {[%clk 0:01:56.9]} 22. Rc5 {[%clk 0:02:08.6]} 22... Be6
{[%clk 0:01:51.6]} 23. Bg5 {[%clk 0:02:07]} 23... h6 {[%clk 0:01:47.2]} 24. Bd2
{[%clk 0:02:01.5]} 24... Rfc8 {[%clk 0:01:46]} 25. Qc1 {[%clk 0:02:00.1]} 25...
Rxc5 {[%clk 0:01:42.7]} 26. bxc5 {[%clk 0:02:01]} 26... Qc7 {[%clk 0:01:36]} 27.
f3 {[%clk 0:01:55.3]} 27... Kh7 {[%clk 0:01:35.2]} 28. f4 {[%clk 0:01:55.3]}
28... Nc6 {[%clk 0:01:28.3]} 29. f5 {[%clk 0:01:54]} 29... Bf7 {[%clk
0:01:20.9]} 30. f6 {[%clk 0:01:52.4]} 30... Bf8 {[%clk 0:01:21.2]} 31. g4 {[%clk
0:01:49.9]} 31... Nd8 {[%clk 0:01:13.2]} 32. Ng3 {[%clk 0:01:48.1]} 32... Qxc5
{[%clk 0:01:11.5]} 33. Qe1 {[%clk 0:01:40.6]} 33... Ne6 {[%clk 0:01:06.2]} 34.
Bh3 {[%clk 0:01:26.7]} 34... b4 {[%clk 0:01:00.1]} 35. g5 {[%clk 0:01:23.6]}
35... Nxg5 {[%clk 0:00:58.9]} 36. Bxg5 {[%clk 0:01:23.2]} 36... hxg5 {[%clk
0:00:59.8]} 37. Qf2 {[%clk 0:01:12.4]} 37... b3 {[%clk 0:00:52.6]} 38. Qh2
{[%clk 0:01:11.6]} 38... Kg8 {[%clk 0:00:43.8]} 39. Bf5 {[%clk 0:01:01.7]} 39...
b2 {[%clk 0:00:40.7]} 40. Rb1 {[%clk 0:00:59.7]} 40... Qc1+ {[%clk 0:00:39.3]}
41. Nf1 {[%clk 0:00:53.5]} 41... Qxb1 {[%clk 0:00:36.8]} 42. Qxe5 {[%clk
0:00:41.4]} 42... Qxf1+ {[%clk 0:00:30.8]} 43. Kxf1 {[%clk 0:00:40.7]} 43...
b1=Q+ {[%clk 0:00:31.7]} 44. Kf2 {[%clk 0:00:40.9]} 44... Rb2+ {[%clk
0:00:32.6]} 45. Kg3 {[%clk 0:00:41.1]} 45... Qg1+ {[%clk 0:00:32.5]} 46. Kh3
{[%clk 0:00:39.7]} 46... Qg2# {[%clk 0:00:30.2]} 0-1

[Event "Early-Titled-Tuesday-Blitz-January-23-2024"]
[Site "Chess.com"]
[Date "2024.01.23"]
[Round "6"]
[White "BashirliSaadat"]
[Black "ETTrainer"]
[Result "0-1"]
[WhiteElo "2418"]
[BlackElo "2588"]
[TimeControl "180+1"]
[EndTime "9:05:45 PST"]
[Termination "ETTrainer won on time"]

1. e4 {[%clk 0:03:00.9]} 1... d5 {[%clk 0:02:58.1]} 2. exd5 {[%clk 0:03:00]}
2... Nf6 {[%clk 0:02:58.8]} 3. Nc3 {[%clk 0:02:58.8]} 3... Nxd5 {[%clk
0:02:58.8]} 4. Nf3 {[%clk 0:02:55.7]} 4... Nxc3 {[%clk 0:02:58.8]} 5. dxc3
{[%clk 0:02:49.5]} 5... Qxd1+ {[%clk 0:02:57.8]} 6. Kxd1 {[%clk 0:02:50.4]} 6...
Bg4 {[%clk 0:02:57.6]} 7. Bf4 {[%clk 0:02:49.2]} 7... c6 {[%clk 0:02:49.7]} 8.
Bd3 {[%clk 0:02:47.5]} 8... Nd7 {[%clk 0:02:49.5]} 9. Kd2 {[%clk 0:02:44.3]}
9... Bxf3 {[%clk 0:02:46.7]} 10. gxf3 {[%clk 0:02:43.5]} 10... e6 {[%clk
0:02:46.1]} 11. Rae1 {[%clk 0:02:41.3]} 11... O-O-O {[%clk 0:02:44.7]} 12. Rhg1
{[%clk 0:02:40.2]} 12... g6 {[%clk 0:02:40.5]} 13. Kc1 {[%clk 0:02:28.6]} 13...
Be7 {[%clk 0:02:34.5]} 14. Kb1 {[%clk 0:02:20.8]} 14... Nc5 {[%clk 0:02:30.1]}
15. Bc4 {[%clk 0:02:14.5]} 15... h6 {[%clk 0:02:18.8]} 16. Be5 {[%clk
0:02:08.3]} 16... Rhe8 {[%clk 0:02:14.6]} 17. Bd4 {[%clk 0:02:05.6]} 17... Kc7
{[%clk 0:02:10.3]} 18. b4 {[%clk 0:01:59.4]} 18... Nd7 {[%clk 0:02:09.8]} 19.
Bb3 {[%clk 0:01:52.9]} 19... Bd6 {[%clk 0:01:57.8]} 20. h3 {[%clk 0:01:44.4]}
20... c5 {[%clk 0:01:54.7]} 21. bxc5 {[%clk 0:01:31.2]} 21... Bxc5 {[%clk
0:01:55.6]} 22. Bxc5 {[%clk 0:01:27.2]} 22... Nxc5 {[%clk 0:01:55]} 23. Re5
{[%clk 0:01:23.4]} 23... b6 {[%clk 0:01:54.6]} 24. Rg4 {[%clk 0:01:20.1]} 24...
Rd2 {[%clk 0:01:53.8]} 25. Rg2 {[%clk 0:01:06.6]} 25... Red8 {[%clk 0:01:53.7]}
26. Re1 {[%clk 0:01:00.2]} 26... Rd1+ {[%clk 0:01:52.5]} 27. Rxd1 {[%clk
0:01:00.5]} 27... Rxd1+ {[%clk 0:01:52.9]} 28. Kb2 {[%clk 0:00:59.7]} 28... Rh1
{[%clk 0:01:52.8]} 29. Rg3 {[%clk 0:00:53]} 29... Rh2 {[%clk 0:01:51.7]} 30. Bc4
{[%clk 0:00:45]} 30... Rxf2 {[%clk 0:01:50.8]} 31. Kc1 {[%clk 0:00:34.7]} 31...
h5 {[%clk 0:01:50.1]} 32. Kd1 {[%clk 0:00:27.9]} 32... Na4 {[%clk 0:01:37.2]}
33. Ke1 {[%clk 0:00:23]} 33... Rh2 {[%clk 0:01:28.2]} 34. f4 {[%clk 0:00:19.2]}
34... Nc5 {[%clk 0:01:27.7]} 35. Be2 {[%clk 0:00:13.2]} 35... Kd6 {[%clk
0:01:20.4]} 36. Re3 {[%clk 0:00:11.7]} 36... h4 {[%clk 0:01:14.5]} 37. Kd2
{[%clk 0:00:10.9]} 37... f5 {[%clk 0:01:09.9]} 38. Kc1 {[%clk 0:00:05.3]} 38...
Ne4 {[%clk 0:01:09.6]} 39. Kb2 {[%clk 0:00:04.6]} 39... Nf2 {[%clk 0:00:56.6]}
0-1

[Event "Early-Titled-Tuesday-Blitz-January-23-2024"]
[Site "Chess.com"]
[Date "2024.01.23"]
[Round "6"]
[White "Sanyura"]
[Black "GlavkonVVS"]
[Result "1-0"]
[WhiteElo "2618"]
[BlackElo "2475"]
[TimeControl "180+1"]
[EndTime "9:05:50 PST"]
[Termination "Sanyura won by resignation"]

1. e4 {[%clk 0:03:00.9]} 1... Nf6 {[%clk 0:02:57.1]} 2. e5 {[%clk 0:03:00.3]}
2... Nd5 {[%clk 0:02:57.1]} 3. c4 {[%clk 0:03:01.2]} 3... Nb6 {[%clk 0:02:57.1]}
4. d4 {[%clk 0:03:01]} 4... d6 {[%clk 0:02:57.6]} 5. f4 {[%clk 0:03:00.5]} 5...
dxe5 {[%clk 0:02:57.7]} 6. fxe5 {[%clk 0:03:01.4]} 6... c5 {[%clk 0:02:58.3]} 7.
d5 {[%clk 0:03:00.5]} 7... g6 {[%clk 0:02:58.7]} 8. Nc3 {[%clk 0:02:57.6]} 8...
Bg7 {[%clk 0:02:58.9]} 9. Bf4 {[%clk 0:02:58]} 9... O-O {[%clk 0:02:58.9]} 10.
Nf3 {[%clk 0:02:55]} 10... Bg4 {[%clk 0:02:58.1]} 11. h3 {[%clk 0:02:55.3]}
11... Bxf3 {[%clk 0:02:57.7]} 12. Qxf3 {[%clk 0:02:56.2]} 12... e6 {[%clk
0:02:58.3]} 13. Rd1 {[%clk 0:02:48.1]} 13... exd5 {[%clk 0:02:50.5]} 14. Nxd5
{[%clk 0:02:36.3]} 14... Re8 {[%clk 0:02:36.7]} 15. Be2 {[%clk 0:02:16.3]} 15...
Nc6 {[%clk 0:02:24.9]} 16. O-O {[%clk 0:01:47.1]} 16... Nd4 {[%clk 0:02:13.7]}
17. Qe4 {[%clk 0:01:41.4]} 17... Nxd5 {[%clk 0:02:01.6]} 18. cxd5 {[%clk
0:01:41]} 18... Qh4 {[%clk 0:01:39]} 19. Bg4 {[%clk 0:00:59.4]} 19... h5 {[%clk
0:01:26.2]} 20. Bd7 {[%clk 0:00:50]} 20... Rxe5 {[%clk 0:01:23.9]} 21. Qd3
{[%clk 0:00:45.4]} 21... Rxd5 {[%clk 0:01:22.8]} 22. Bb5 {[%clk 0:00:39.3]}
22... Rad8 {[%clk 0:01:11.1]} 23. Bc4 {[%clk 0:00:38.2]} 23... Ne2+ {[%clk
0:01:02.9]} 24. Qxe2 {[%clk 0:00:36.9]} 24... Rxd1 {[%clk 0:01:03]} 25. Bxf7+
{[%clk 0:00:31.6]} 25... Kxf7 {[%clk 0:00:59.2]} 26. Bg5+ {[%clk 0:00:27.9]}
26... Kg8 {[%clk 0:00:27.6]} 27. Bxh4 {[%clk 0:00:27.7]} 27... Rxf1+ {[%clk
0:00:22.8]} 28. Qxf1 {[%clk 0:00:27.9]} 28... Rd2 {[%clk 0:00:18.9]} 29. Qc4+
{[%clk 0:00:25]} 29... Kh7 {[%clk 0:00:17.9]} 30. Qf7 {[%clk 0:00:24.3]} 30...
Kh6 {[%clk 0:00:09.5]} 31. Qf4+ {[%clk 0:00:23.2]} 1-0

[Event "Early-Titled-Tuesday-Blitz-January-23-2024"]
[Site "Chess.com"]
[Date "2024.01.23"]
[Round "6"]
[White "nekotyanof"]
[Black "baki83"]
[Result "1-0"]
[WhiteElo "2663"]
[BlackElo "2832"]
[TimeControl "180+1"]
[EndTime "9:05:51 PST"]
[Termination "nekotyanof won by resignation"]

1. e4 {[%clk 0:03:00.9]} 1... c5 {[%clk 0:02:59.8]} 2. Nf3 {[%clk 0:03:00.9]}
2... d6 {[%clk 0:03:00.2]} 3. Bb5+ {[%clk 0:03:00.4]} 3... Nc6 {[%clk
0:02:56.9]} 4. d4 {[%clk 0:02:58.6]} 4... cxd4 {[%clk 0:02:56.7]} 5. Qxd4 {[%clk
0:02:59.1]} 5... Nf6 {[%clk 0:02:52.5]} 6. e5 {[%clk 0:02:49.5]} 6... Qa5+
{[%clk 0:02:20.4]} 7. Nc3 {[%clk 0:02:49.2]} 7... Qxb5 {[%clk 0:02:17.9]} 8.
Nxb5 {[%clk 0:02:49.3]} 8... Nxd4 {[%clk 0:02:18.2]} 9. Nfxd4 {[%clk 0:02:13]}
9... dxe5 {[%clk 0:02:18.5]} 10. Nc7+ {[%clk 0:02:13.6]} 10... Kd8 {[%clk
0:02:08.6]} 11. Nxa8 {[%clk 0:02:14.5]} 11... exd4 {[%clk 0:02:08.5]} 12. Bf4
{[%clk 0:02:12.9]} 12... Nd5 {[%clk 0:01:39.4]} 13. O-O-O {[%clk 0:02:12.4]}
13... e6 {[%clk 0:01:23.6]} 14. Rxd4 {[%clk 0:02:06.5]} 14... Bc5 {[%clk
0:01:19.8]} 15. Rd2 {[%clk 0:01:56.4]} 15... Ke7 {[%clk 0:01:17]} 16. Bg3 {[%clk
0:01:48.6]} 16... Bb4 {[%clk 0:01:10.1]} 17. c3 {[%clk 0:01:47.5]} 17... Ba5
{[%clk 0:01:10.3]} 18. Re1 {[%clk 0:01:44.9]} 18... Kf6 {[%clk 0:00:48.8]} 19.
Re4 {[%clk 0:01:28.7]} 19... Bd7 {[%clk 0:00:45.4]} 20. Nc7 {[%clk 0:01:29.3]}
20... Bxc7 {[%clk 0:00:38.6]} 21. Bxc7 {[%clk 0:01:29]} 21... Bc6 {[%clk
0:00:38.2]} 22. Be5+ {[%clk 0:01:27.4]} 22... Ke7 {[%clk 0:00:37.5]} 23. Rg4
{[%clk 0:01:17.6]} 23... h5 {[%clk 0:00:29.7]} 24. Rxg7 {[%clk 0:01:16.1]} 24...
Rc8 {[%clk 0:00:28.4]} 25. Rd3 {[%clk 0:01:10.9]} 25... Be8 {[%clk 0:00:12.6]}
26. Rh3 {[%clk 0:01:04.6]} 26... b5 {[%clk 0:00:11.8]} 27. a3 {[%clk 0:01:02.5]}
27... a5 {[%clk 0:00:11.6]} 28. Rxh5 {[%clk 0:01:02.8]} 28... b4 {[%clk
0:00:12]} 29. axb4 {[%clk 0:01:03]} 29... axb4 {[%clk 0:00:12.5]} 30. Rh3 {[%clk
0:01:03.8]} 30... b3 {[%clk 0:00:11.8]} 31. Bd4 {[%clk 0:00:59]} 31... Rc4
{[%clk 0:00:09]} 32. Kd2 {[%clk 0:00:52.8]} 32... Bc6 {[%clk 0:00:06.2]} 33. Rf3
{[%clk 0:00:47.3]} 33... Be8 {[%clk 0:00:05.5]} 34. h4 {[%clk 0:00:47.5]} 34...
Ra4 {[%clk 0:00:05]} 35. h5 {[%clk 0:00:45.3]} 35... Ra2 {[%clk 0:00:05.2]} 36.
Bc5+ {[%clk 0:00:45.9]} 36... Kd7 {[%clk 0:00:05.1]} 37. Ba3 {[%clk 0:00:46.4]}
37... Kc6 {[%clk 0:00:03.1]} 38. h6 {[%clk 0:00:46.7]} 38... Ra1 {[%clk
0:00:01.9]} 39. Rg8 {[%clk 0:00:45]} 39... Rb1 {[%clk 0:00:01.6]} 40. h7 {[%clk
0:00:44.9]} 1-0

[Event "Early-Titled-Tuesday-Blitz-January-23-2024"]
[Site "Chess.com"]
[Date "2024.01.23"]
[Round "6"]
[White "kai_nov"]
[Black "IsaqueGoncalvesSanto"]
[Result "1-0"]
[WhiteElo "2300"]
[BlackElo "1814"]
[TimeControl "180+1"]
[EndTime "9:05:54 PST"]
[Termination "kai_nov won on time"]

1. d4 {[%clk 0:03:00.9]} 1... d5 {[%clk 0:01:39.6]} 2. Nc3 {[%clk 0:02:56.4]}
2... e6 {[%clk 0:01:38.4]} 3. Nf3 {[%clk 0:02:55.5]} 3... Nf6 {[%clk 0:01:38.4]}
4. Bg5 {[%clk 0:02:55.3]} 4... Be7 {[%clk 0:01:38]} 5. Bxf6 {[%clk 0:02:52.5]}
5... Bxf6 {[%clk 0:01:36.8]} 6. e4 {[%clk 0:02:52.7]} 6... dxe4 {[%clk
0:01:36.6]} 7. Nxe4 {[%clk 0:02:53]} 7... Be7 {[%clk 0:01:36.5]} 8. c3 {[%clk
0:02:53.4]} 8... O-O {[%clk 0:01:36.1]} 9. Bd3 {[%clk 0:02:53.4]} 9... b6 {[%clk
0:01:36.1]} 10. Qe2 {[%clk 0:02:52.4]} 10... Bb7 {[%clk 0:01:35.7]} 11. O-O-O
{[%clk 0:02:52.3]} 11... Qd5 {[%clk 0:01:29.5]} 12. h4 {[%clk 0:02:35.8]} 12...
Qxa2 {[%clk 0:01:26.1]} 13. Neg5 {[%clk 0:02:29.4]} 13... h6 {[%clk 0:01:24.7]}
14. Bc4 {[%clk 0:02:19]} 14... Qa1+ {[%clk 0:01:18.3]} 15. Kc2 {[%clk
0:02:17.7]} 15... Qa4+ {[%clk 0:01:17.9]} 16. Bb3 {[%clk 0:02:15.9]} 16... Qc6
{[%clk 0:01:15]} 17. Nxf7 {[%clk 0:01:55.6]} 17... Qe4+ {[%clk 0:01:04.9]} 18.
Kd2 {[%clk 0:01:49.1]} 18... Qxe2+ {[%clk 0:01:01.6]} 19. Kxe2 {[%clk 0:01:49]}
19... Bxf3+ {[%clk 0:00:58.3]} 20. gxf3 {[%clk 0:01:46.8]} 20... Kxf7 {[%clk
0:00:58.3]} 21. d5 {[%clk 0:01:33.1]} 21... Kg8 {[%clk 0:00:19.2]} 22. dxe6
{[%clk 0:01:06.1]} 22... Na6 {[%clk 0:00:19.4]} 23. Bc4 {[%clk 0:01:01]} 23...
Nc5 {[%clk 0:00:19.4]} 24. b4 {[%clk 0:00:59.4]} 24... Na4 {[%clk 0:00:15.1]}
25. Rd7 {[%clk 0:00:55.3]} 25... Nxc3+ {[%clk 0:00:13.2]} 26. Kd3 {[%clk
0:00:52.5]} 26... Bxb4 {[%clk 0:00:13.6]} 27. e7+ {[%clk 0:00:51.3]} 27... Rf7
{[%clk 0:00:12.4]} 28. Rd8+ {[%clk 0:00:45.8]} 28... Kh7 {[%clk 0:00:12.5]} 29.
e8=Q {[%clk 0:00:30.8]} 29... Rxf3+ {[%clk 0:00:11.7]} 30. Kc2 {[%clk
0:00:28.8]} 30... Rxf2+ {[%clk 0:00:08.2]} 31. Kb3 {[%clk 0:00:27]} 31... Rxd8
{[%clk 0:00:01.6]} 32. Qxd8 {[%clk 0:00:26.1]} 1-0

[Event "Early-Titled-Tuesday-Blitz-January-23-2024"]
[Site "Chess.com"]
[Date "2024.01.23"]
[Round "6"]
[White "Horokoskii"]
[Black "stepanosinovsky"]
[Result "0-1"]
[WhiteElo "2065"]
[BlackElo "2367"]
[TimeControl "180+1"]
[EndTime "9:05:57 PST"]
[Termination "stepanosinovsky won on time"]

1. e4 {[%clk 0:02:58.5]} 1... Nc6 {[%clk 0:02:59.8]} 2. d4 {[%clk 0:02:53.9]}
2... e5 {[%clk 0:03:00.2]} 3. d5 {[%clk 0:02:52.4]} 3... Nce7 {[%clk 0:03:00.7]}
4. c4 {[%clk 0:02:49.6]} 4... Ng6 {[%clk 0:03:00.5]} 5. Nc3 {[%clk 0:02:46]}
5... Bc5 {[%clk 0:03:01]} 6. Nf3 {[%clk 0:02:35.6]} 6... d6 {[%clk 0:02:55.9]}
7. h3 {[%clk 0:02:16.5]} 7... f5 {[%clk 0:02:36.9]} 8. Bd3 {[%clk 0:02:11.7]}
8... Nh4 {[%clk 0:02:01.6]} 9. Nxh4 {[%clk 0:01:56.4]} 9... Qxh4 {[%clk
0:02:01.4]} 10. Qf3 {[%clk 0:01:51]} 10... fxe4 {[%clk 0:01:12]} 11. Nxe4 {[%clk
0:01:46.2]} 11... Bb4+ {[%clk 0:01:12.4]} 12. Bd2 {[%clk 0:01:43.2]} 12... Bxd2+
{[%clk 0:01:11.9]} 13. Nxd2 {[%clk 0:01:40.9]} 13... Nf6 {[%clk 0:01:09.6]} 14.
Ne4 {[%clk 0:01:33.8]} 14... O-O {[%clk 0:01:09.3]} 15. Qg3 {[%clk 0:01:24.6]}
15... Qh6 {[%clk 0:00:59.5]} 16. Qg5 {[%clk 0:00:38.6]} 16... Qxg5 {[%clk
0:00:34.9]} 17. Nxg5 {[%clk 0:00:30.5]} 17... h6 {[%clk 0:00:23.2]} 18. Ne4
{[%clk 0:00:26.5]} 18... Nxe4 {[%clk 0:00:21.7]} 19. Bxe4 {[%clk 0:00:25.4]}
19... Rf4 {[%clk 0:00:22.3]} 20. f3 {[%clk 0:00:23.7]} 20... a5 {[%clk
0:00:21.9]} 21. Ke2 {[%clk 0:00:14]} 21... b6 {[%clk 0:00:21.1]} 22. Ke3 {[%clk
0:00:11.8]} 22... g5 {[%clk 0:00:20.4]} 23. Raf1 {[%clk 0:00:08]} 23... Bd7
{[%clk 0:00:19.8]} 24. b3 {[%clk 0:00:06.6]} 24... Kg7 {[%clk 0:00:18.7]} 25.
Rhg1 {[%clk 0:00:05.7]} 25... Raf8 {[%clk 0:00:17.5]} 26. Rf2 {[%clk 0:00:03.6]}
26... Bc8 {[%clk 0:00:17]} 27. Rgf1 {[%clk 0:00:02.2]} 27... h5 {[%clk
0:00:16.3]} 28. g3 {[%clk 0:00:01.9]} 28... R4f6 {[%clk 0:00:16.1]} 0-1

[Event "Early-Titled-Tuesday-Blitz-January-23-2024"]
[Site "Chess.com"]
[Date "2024.01.23"]
[Round "6"]
[White "Predator0608"]
[Black "Harry_Rakkel"]
[Result "1-0"]
[WhiteElo "2524"]
[BlackElo "2653"]
[TimeControl "180+1"]
[EndTime "9:05:58 PST"]
[Termination "Predator0608 won by resignation"]

1. e4 {[%clk 0:03:00.6]} 1... c6 {[%clk 0:02:57.7]} 2. d4 {[%clk 0:02:59.8]}
2... d5 {[%clk 0:02:57.3]} 3. f3 {[%clk 0:02:57.3]} 3... e6 {[%clk 0:02:55.4]}
4. Nd2 {[%clk 0:02:48.1]} 4... Nf6 {[%clk 0:02:50.2]} 5. Ne2 {[%clk 0:02:40.3]}
5... Be7 {[%clk 0:02:32.1]} 6. g3 {[%clk 0:02:34.7]} 6... dxe4 {[%clk
0:02:23.7]} 7. Nxe4 {[%clk 0:02:35.6]} 7... Nxe4 {[%clk 0:02:23.2]} 8. fxe4
{[%clk 0:02:35.2]} 8... e5 {[%clk 0:02:21.1]} 9. c3 {[%clk 0:02:32.2]} 9... exd4
{[%clk 0:02:14.6]} 10. cxd4 {[%clk 0:02:33.1]} 10... Bg4 {[%clk 0:01:46.8]} 11.
Be3 {[%clk 0:02:31.2]} 11... Bf3 {[%clk 0:01:44.3]} 12. Rg1 {[%clk 0:02:30.8]}
12... Bxe4 {[%clk 0:01:43.9]} 13. Qb3 {[%clk 0:02:26]} 13... Qb6 {[%clk
0:01:40.3]} 14. Nc3 {[%clk 0:02:19.8]} 14... Bg6 {[%clk 0:01:37.2]} 15. Qxb6
{[%clk 0:02:06.8]} 15... axb6 {[%clk 0:01:36.5]} 16. d5 {[%clk 0:02:07.7]} 16...
Nd7 {[%clk 0:01:24.9]} 17. Bg2 {[%clk 0:01:47.2]} 17... Ne5 {[%clk 0:01:08]} 18.
O-O-O {[%clk 0:01:38.3]} 18... Nc4 {[%clk 0:00:57.5]} 19. Bf4 {[%clk 0:01:15.9]}
19... O-O {[%clk 0:00:55.3]} 20. dxc6 {[%clk 0:01:13.6]} 20... bxc6 {[%clk
0:00:53.1]} 21. Bxc6 {[%clk 0:01:14.5]} 21... Rac8 {[%clk 0:00:45.9]} 22. Bd7
{[%clk 0:01:12.1]} 22... Rc5 {[%clk 0:00:42.2]} 23. Rge1 {[%clk 0:01:10.6]}
23... Bf6 {[%clk 0:00:41.1]} 24. Bd2 {[%clk 0:00:37.6]} 24... h5 {[%clk
0:00:35.2]} 25. Ba4 {[%clk 0:00:31.6]} 25... Ra8 {[%clk 0:00:27.4]} 26. Bb3
{[%clk 0:00:31.3]} 26... Nxd2 {[%clk 0:00:22.7]} 27. Kxd2 {[%clk 0:00:31.9]}
27... Bg5+ {[%clk 0:00:20.8]} 28. Ke2 {[%clk 0:00:30.6]} 28... Rf5 {[%clk
0:00:20.3]} 29. Rd5 {[%clk 0:00:25.4]} 29... Re8+ {[%clk 0:00:18.2]} 30. Kd1
{[%clk 0:00:25.8]} 30... h4 {[%clk 0:00:13.3]} 31. Rxe8+ {[%clk 0:00:24.6]}
31... Kh7 {[%clk 0:00:13.2]} 32. Rxf5 {[%clk 0:00:24.9]} 32... Bxf5 {[%clk
0:00:12]} 33. Bc2 {[%clk 0:00:25.5]} 1-0